fUSD/lending_fUSD_20250108
["ID","MTS","AMOUNT","RATE_DAILY","PERIOD"]
[348123703,1736340632062,-167.48,9.181e-05,2]
[348123704,1736340632072,-150.0,9.19e-05,2]
[348123705,1736340632082,-150.0,9.19e-05,2]
[348123706,1736340632091,-150.0,9.222e-05,2]
[348123707,1736340632102,-150.0,9.222e-05,2]
[348123708,1736340632111,-251.45,9.378e-05,2]
[348123709,1736340632121,-150.0,9.378e-05,2]
[348123710,1736340632130,-150.0,9.396e-05,2]
[348123711,1736340632139,-150.0,9.607e-05,2]
[348123712,1736340632149,-259.3627,9.661e-05,2]
[348123713,1736340632158,-150.0,9.734e-05,2]
[348123714,1736340632167,-150.0,9.747e-05,2]
[348123715,1736340632177,-151.741,9.76e-05,2]
[348123716,1736340632187,-496.4,9.76e-05,2]
[348123717,1736340632196,-500.16,9.76e-05,2]
[348123718,1736340632205,-3647.03694974,9.76e-05,2]
[348123719,1736340632263,-713.9780438,9.76e-05,2]
[348123720,1736340632275,-435.51999,9.76e-05,2]
[348123721,1736340632286,-745.6524641,9.76e-05,2]
[348123722,1736340632303,-957.55557787,9.76e-05,2]
[348123723,1736340632341,-1128.30697449,9.76e-05,2]
[348123724,1736340632352,-507.7,9.76e-05,2]
[348123725,1736340632362,-348.52095469,9.761e-05,2]
[348123726,1736340632371,-499.91,9.761e-05,2]
[348123727,1736340632381,-492.78,9.761e-05,2]
[348123728,1736340632391,-492.65,9.761e-05,2]
[348123729,1736340632401,-496.33,9.761e-05,2]
[348123730,1736340632410,-490.11,9.762e-05,2]
[348123731,1736340632420,-150.0,9.762e-05,2]
[348123732,1736340632429,-507.16,9.763e-05,2]
[348123733,1736340632439,-492.56,9.764e-05,2]
[348123734,1736340632448,-150.0,9.765e-05,2]
[348123735,1736340632459,-495.06,9.767e-05,2]
[348123736,1736340632468,-505.14,9.771e-05,2]
[348123737,1736340632478,-506.76,9.778e-05,2]
[348123738,1736340632488,-150.0,9.78e-05,2]
[348123739,1736340632497,-505.14,9.789e-05,2]
[348123740,1736340632508,-500.82,9.81e-05,2]
[348123741,1736340632518,-150.0,9.836e-05,2]
[348123742,1736340632527,-474.47,9.836e-05,2]
[348123743,1736340632536,-150.0,9.836e-05,2]
[348123744,1736340632546,-493.96,9.844e-05,2]
[348123746,1736340632555,-150.0,9.882e-05,2]
[348123748,1736340632565,-1495.6435125,9.898e-05,2]
[348123751,1736340632840,-371.35,9.898e-05,2]
[348123752,1736340637761,-747.72488862,9.898e-05,2]
[348123753,1736340637775,-1000.0,9.898e-05,2]
[348123757,1736340637819,-1385.28159888,9.898e-05,2]
[348123759,1736340637828,-155.0042,9.899e-05,2]
[348123761,1736340637837,-466.26471362,9.899e-05,2]
[348123762,1736340637848,-1000.0,9.9e-05,2]
[348123763,1736340637859,-3055.2678,9.9e-05,2]
[348123764,1736340637868,-1540.374,9.9e-05,2]
[348123765,1736340637878,-500.0,9.9e-05,2]
[348123766,1736340637888,-304.3047,9.9e-05,2]
[348123767,1736340637897,-5149.9269875,9.9e-05,2]
[348123768,1736340637932,-3250.66714693,9.9e-05,2]
[348123769,1736340637944,-992.094,9.9e-05,2]
[348123770,1736340637956,-466.48125778,9.9e-05,2]
[348123771,1736340637983,-5305.36144738,9.9e-05,2]
[348123772,1736340638001,-3992.5,9.9e-05,2]
[348123773,1736340638013,-3739.99999977,9.9e-05,2]
[348123774,1736340638029,-1094.72657998,9.9e-05,2]
[348123775,1736340638093,-303.2257835,9.9e-05,2]
[348123776,1736340638153,-124539.15342125,9.9e-05,2]
[348123777,1736340638163,-509.71,9.901e-05,2]
[348123778,1736340638172,-150.0,9.903e-05,2]
[348123779,1736340638182,-201.00890047,9.945e-05,2]
[348123780,1736340638192,-398.59,9.949e-05,2]
[348123781,1736340638201,-153.6018,9.952e-05,2]
[348123782,1736340638210,-500.0,9.973e-05,2]
[348123783,1736340638220,-201.00890047,9.991e-05,2]
[348123784,1736340638229,-1884.882851,9.993e-05,2]
[348123785,1736340638238,-160.810842,9.993e-05,2]
[348123786,1736340638248,-156.313771,9.993e-05,2]
[348123787,1736340638258,-2302.348372,9.993e-05,2]
[348123788,1736340638269,-1884.882851,9.997e-05,2]
[348123789,1736340638279,-2302.348372,9.997e-05,2]
[348123790,1736340638289,-500.0,9.997e-05,2]
[348123791,1736340638298,-1463.29,9.997e-05,2]
[348123792,1736340638309,-536.19,9.997e-05,2]
[348123793,1736340638318,-647.37,9.997e-05,2]
[348123794,1736340638327,-1060.98,9.997e-05,2]
[348123795,1736340638336,-500.0,9.997e-05,2]
[348123796,1736340638345,-500.0,9.997e-05,2]
[348123797,1736340638356,-547.72,9.997e-05,2]
[348123798,1736340638365,-1854.93,9.997e-05,2]
[348123799,1736340638374,-500.0,9.997e-05,2]
[348123800,1736340638383,-529.64,9.997e-05,2]
[348123801,1736340638392,-791.78,9.997e-05,2]
[348123802,1736340638402,-500.0,9.997e-05,2]
[348123803,1736340638411,-500.0,9.997e-05,2]
[348123804,1736340638421,-1195.52,9.997e-05,2]
[348123805,1736340638431,-748.92,9.997e-05,2]
[348123806,1736340638440,-500.0,9.997e-05,2]
[348123807,1736340638450,-500.0,9.997e-05,2]
[348123808,1736340638459,-500.0,9.997e-05,2]
[348123809,1736340638468,-1512.62,9.997e-05,2]
[348123810,1736340638478,-500.0,9.997e-05,2]
[348123811,1736340638487,-500.0,9.997e-05,2]
[348123812,1736340638497,-500.0,9.997e-05,2]
[348123813,1736340638506,-500.0,9.997e-05,2]
[348123814,1736340638517,-518.43,9.997e-05,2]
[348123815,1736340638527,-500.0,9.998e-05,2]
[348123816,1736340638537,-500.0,9.998e-05,2]
[348123817,1736340638547,-500.0,9.998e-05,2]
[348123818,1736340638556,-500.0,9.998e-05,2]
[348123819,1736340638566,-500.0,9.998e-05,2]
[348123820,1736340638576,-500.0,9.998e-05,2]
[348123821,1736340638585,-500.0,9.998e-05,2]
[348123822,1736340638595,-500.0,9.998e-05,2]
[348123823,1736340638609,-500.0,9.998e-05,2]
[348123824,1736340638619,-500.0,9.998e-05,2]
[348123825,1736340638628,-500.0,9.998e-05,2]
[348123826,1736340638638,-500.0,9.998e-05,2]
[348123827,1736340638649,-500.0,9.998e-05,2]
[348123828,1736340638659,-500.0,9.998e-05,2]
[348123829,1736340638669,-500.0,9.998e-05,2]
[348123830,1736340638680,-500.0,9.998e-05,2]
[348123831,1736340638690,-500.0,9.998e-05,2]
[348123832,1736340638700,-500.0,9.998e-05,2]
[348123833,1736340638709,-500.0,9.998e-05,2]
[348123834,1736340638719,-500.0,9.998e-05,2]
[348123835,1736340638728,-500.0,9.998e-05,2]
[348123836,1736340638738,-500.0,9.998e-05,2]
[348123837,1736340638747,-500.0,9.998e-05,2]
[348123838,1736340638756,-500.0,9.998e-05,2]
[348123839,1736340638766,-520.03,9.998e-05,2]
[348123840,1736340638775,-500.0,9.998e-05,2]
[348123841,1736340638785,-1884.882851,9.998e-05,2]
[348123842,1736340638795,-1884.882851,9.998e-05,2]
[348123843,1736340638804,-1884.882851,9.998e-05,2]
[348123844,1736340638814,-1884.882851,9.998e-05,2]
[348123845,1736340638824,-500.0,9.998e-05,2]
[348123846,1736340638833,-500.0,9.998e-05,2]
[348123847,1736340638842,-500.0,9.998e-05,2]
[348123848,1736340638853,-160.810842,9.998e-05,2]
[348123849,1736340638863,-604.79378243,9.998e-05,2]
[348123850,1736340638872,-500.0,9.998e-05,2]
[348123851,1736340638881,-500.0,9.998e-05,2]
[348123852,1736340638890,-500.0,9.998e-05,2]
[348123853,1736340638899,-500.0,9.998e-05,2]
[348123854,1736340638909,-500.0,9.998e-05,2]
[348123855,1736340638918,-500.0,9.998e-05,2]
[348123856,1736340638927,-500.0,9.998e-05,2]
[348123857,1736340638937,-500.0,9.998e-05,2]
[348123858,1736340638946,-2302.348372,9.998e-05,2]
[348123859,1736340638955,-1359.28,9.998e-05,2]
[348123860,1736340638964,-2302.348372,9.998e-05,2]
[348123861,1736340638974,-2302.348372,9.998e-05,2]
[348123862,1736340638984,-2302.348372,9.998e-05,2]
[348123863,1736340638993,-500.0,9.998e-05,2]
[348123864,1736340639002,-500.0,9.998e-05,2]
[348123865,1736340639012,-500.0,9.998e-05,2]
[348123866,1736340639022,-500.0,9.998e-05,2]
[348123867,1736340639032,-500.0,9.998e-05,2]
[348123868,1736340639041,-501.40913893,9.998e-05,2]
[348123869,1736340639051,-500.0,9.998e-05,2]
[348123870,1736340639060,-500.0,9.998e-05,2]
[348123871,1736340639070,-500.0,9.998e-05,2]
[348123872,1736340639079,-500.0,9.998e-05,2]
[348123873,1736340639089,-500.0,9.998e-05,2]
[348123874,1736340639098,-500.0,9.998e-05,2]
[348123875,1736340639110,-500.0,9.998e-05,2]
[348123876,1736340639120,-501.35445546,9.998e-05,2]
[348123877,1736340639130,-500.0,9.998e-05,2]
[348123878,1736340639144,-495.42761501,9.998e-05,2]
[348123879,1736340639163,-4.57238499,9.998e-05,2]
[348123880,1736340639173,-353.730012,9.998e-05,2]
[348123881,1736340639182,-500.0,9.998e-05,2]
[348123882,1736340639192,-500.0,9.998e-05,2]
[348123883,1736340639201,-500.67721626,9.998e-05,2]
[348123884,1736340639211,-500.0,9.998e-05,2]
[348123885,1736340639220,-500.0,9.998e-05,2]
[348123886,1736340639229,-500.0,9.998e-05,2]
[348123887,1736340639241,-500.0,9.998e-05,2]
[348123888,1736340639251,-500.0,9.998e-05,2]
[348123889,1736340639261,-500.0,9.998e-05,2]
[348123890,1736340639271,-500.0,9.998e-05,2]
[348123891,1736340639282,-500.0,9.998e-05,2]
[348123892,1736340639292,-500.0,9.998e-05,2]
[348123893,1736340639302,-500.0,9.998e-05,2]
[348123894,1736340639313,-500.0,9.998e-05,2]
[348123895,1736340639322,-473.91821886,9.998e-05,2]
[348123896,1736340639332,-500.0,9.998e-05,2]
[348123897,1736340639342,-592.55,9.998e-05,2]
[348123898,1736340639352,-500.0,9.998e-05,2]
[348123899,1736340639361,-500.0,9.998e-05,2]
[348123900,1736340639371,-498.46236028,9.998e-05,2]
[348123901,1736340639380,-500.0,9.998e-05,2]
[348123902,1736340639391,-501.36088546,9.998e-05,2]
[348123903,1736340639401,-500.0,9.998e-05,2]
[348123904,1736340639411,-500.0,9.998e-05,2]
[348123905,1736340639420,-500.0,9.998e-05,2]
[348123906,1736340639430,-672.06,9.998e-05,2]
[348123907,1736340639439,-500.0,9.998e-05,2]
[348123908,1736340639449,-555.3,9.998e-05,2]
[348123909,1736340639459,-500.0,9.998e-05,2]
[348123910,1736340639468,-500.0,9.998e-05,2]
[348123911,1736340639477,-500.0,9.998e-05,2]
[348123912,1736340639487,-500.0,9.998e-05,2]
[348123913,1736340639497,-500.0,9.998e-05,2]
[348123914,1736340639506,-529.69,9.998e-05,2]
[348123915,1736340639516,-500.0,9.998e-05,2]
[348123916,1736340639525,-606.66,9.998e-05,2]
[348123917,1736340639535,-500.0,9.998e-05,2]
[348123918,1736340639544,-500.0,9.998e-05,2]
[348123919,1736340639554,-500.0,9.998e-05,2]
[348123920,1736340639563,-500.0,9.998e-05,2]
[348123921,1736340639573,-500.0,9.998e-05,2]
[348123922,1736340639583,-500.0,9.998e-05,2]
[348123923,1736340639592,-500.0,9.998e-05,2]
[348123924,1736340639607,-500.0,9.998e-05,2]
[348123925,1736340639617,-500.0,9.998e-05,2]
[348123926,1736340639627,-500.0,9.998e-05,2]
[348123927,1736340639637,-500.0,9.998e-05,2]
[348123928,1736340639647,-500.0,9.998e-05,2]
[348123930,1736340639656,-500.0,9.998e-05,2]
[348123931,1736340639665,-500.0,9.998e-05,2]
[348123932,1736340639674,-500.0,9.998e-05,2]
[348123933,1736340639684,-340.47203841,9.998e-05,2]
[348123934,1736340639697,-159.52796159,9.998e-05,2]
[348123935,1736340639706,-500.0,9.998e-05,2]
[348123936,1736340639716,-500.0,9.998e-05,2]
[348123937,1736340639726,-500.0,9.998e-05,2]
[348123938,1736340639736,-202.40737307,9.998e-05,2]
[348123940,1736340639746,-500.0,9.998e-05,2]
[348123942,1736340639756,-500.0,9.998e-05,2]
[348123944,1736340639765,-501.46425836,9.998e-05,2]
[348123946,1736340639775,-501.63872328,9.998e-05,2]
[348123947,1736340639785,-500.0,9.998e-05,2]
[348123948,1736340639794,-500.0,9.998e-05,2]
[348123949,1736340639803,-500.0,9.998e-05,2]
[348123950,1736340639813,-500.0,9.998e-05,2]
[348123951,1736340639822,-500.0,9.998e-05,2]
[348123952,1736340639832,-500.0,9.998e-05,2]
[348123953,1736340639841,-500.0,9.998e-05,2]
[348123954,1736340639851,-500.0,9.998e-05,2]
[348123955,1736340639861,-500.0,9.998e-05,2]
[348123956,1736340639871,-500.0,9.998e-05,2]
[348123957,1736340639880,-500.0,9.998e-05,2]
[348123958,1736340639889,-500.0,9.998e-05,2]
[348123959,1736340639898,-500.0,9.998e-05,2]
[348123960,1736340639907,-500.0,9.998e-05,2]
[348123961,1736340639917,-534.27,9.998e-05,2]
[348123962,1736340639926,-303.27239937,9.998e-05,2]
[348123963,1736340639936,-500.0,9.998e-05,2]
[348123964,1736340639946,-500.0,9.998e-05,2]
[348123965,1736340639955,-500.0,9.998e-05,2]
[348123966,1736340639964,-500.0,9.998e-05,2]
[348123968,1736340639974,-500.0,9.998e-05,2]
[348123970,1736340639984,-500.0,9.998e-05,2]
[348123972,1736340639993,-501.32859064,9.998e-05,2]
[348123974,1736340640003,-500.0,9.998e-05,2]
[348123976,1736340640012,-501.2773116,9.998e-05,2]
[348123978,1736340640021,-500.0,9.998e-05,2]
[348123980,1736340640030,-500.0,9.998e-05,2]
[348123982,1736340640040,-500.0,9.998e-05,2]
[348123984,1736340640049,-500.0,9.998e-05,2]
[348123986,1736340640059,-500.0,9.998e-05,2]
[348123988,1736340640068,-500.51172738,9.998e-05,2]
[348123990,1736340640077,-546.47,9.998e-05,2]
[348123992,1736340640087,-500.0,9.998e-05,2]
[348123994,1736340640096,-502.06239129,9.998e-05,2]
[348123996,1736340640107,-500.0,9.998e-05,2]
[348123998,1736340640118,-500.0,9.998e-05,2]
[348124000,1736340640128,-169.91313375,9.998e-05,2]
[348124002,1736340640138,-500.0,9.998e-05,2]
[348124004,1736340640148,-500.0,9.998e-05,2]
[348124006,1736340640158,-500.0,9.998e-05,2]
[348124008,1736340640167,-1583.28,9.998e-05,2]
[348124010,1736340640177,-500.0,9.998e-05,2]
[348124012,1736340640186,-501.11955231,9.998e-05,2]
[348124014,1736340640195,-502.69811503,9.998e-05,2]
[348124016,1736340640205,-500.0,9.998e-05,2]
[348124018,1736340640214,-500.0,9.998e-05,2]
[348124020,1736340640223,-500.0,9.998e-05,2]
[348124022,1736340640233,-501.00282612,9.998e-05,2]
[348124025,1736340640244,-500.0,9.998e-05,2]
[348124026,1736340640253,-500.35373502,9.998e-05,2]
[348124028,1736340640265,-4319.16,9.998e-05,2]
[348124029,1736340640274,-500.0,9.998e-05,2]
[348124030,1736340640283,-500.0,9.998e-05,2]
[348124031,1736340640291,-500.0,9.998e-05,2]
[348124032,1736340640300,-289.42280488,9.998e-05,2]
[348124114,1736340641117,-499.23,9.898e-05,2]
[348124116,1736340641126,-93.3,9.998e-05,2]
[348124119,1736340641151,-117.27719512,9.998e-05,2]
[348124121,1736340641160,-382.72280488,9.998e-05,2]
[348124125,1736340641193,-500.0,9.973e-05,2]
[348124128,1736340641203,-119.32993005,9.998e-05,2]
[348124129,1736340641212,-500.0,9.998e-05,2]
[348124132,1736340641221,-500.0,9.998e-05,2]
[348124134,1736340641231,-500.0,9.998e-05,2]
[348124135,1736340641240,-501.46697405,9.998e-05,2]
[348124138,1736340641250,-500.0,9.998e-05,2]
[348124140,1736340641260,-500.0,9.998e-05,2]
[348124142,1736340641269,-500.0,9.998e-05,2]
[348124144,1736340641279,-622.07481364,9.998e-05,2]
[348124146,1736340641288,-500.0,9.998e-05,2]
[348124148,1736340641297,-2803.58,9.998e-05,2]
[348124149,1736340641307,-500.0,9.998e-05,2]
[348124151,1736340641316,-500.0,9.998e-05,2]
[348124153,1736340641325,-500.0,9.998e-05,2]
[348124156,1736340641335,-500.0,9.998e-05,2]
[348124157,1736340641344,-500.0,9.998e-05,2]
[348124159,1736340641355,-500.0,9.998e-05,2]
[348124162,1736340641365,-707.65,9.998e-05,2]
[348124163,1736340641375,-500.0,9.998e-05,2]
[348124165,1736340641384,-500.0,9.998e-05,2]
[348124168,1736340641394,-500.0,9.998e-05,2]
[348124170,1736340641403,-500.0,9.998e-05,2]
[348124172,1736340641413,-500.0,9.998e-05,2]
[348124173,1736340641422,-500.0,9.998e-05,2]
[348124176,1736340641432,-500.0,9.998e-05,2]
[348124178,1736340641441,-502.3678845,9.998e-05,2]
[348124180,1736340641451,-500.0,9.998e-05,2]
[348124181,1736340641460,-500.0,9.998e-05,2]
[348124183,1736340641469,-516.29695258,9.998e-05,2]
[348124185,1736340641479,-1408.08,9.998e-05,2]
[348124187,1736340641488,-365.91340295,9.998e-05,2]
[348124189,1736340641497,-2179.69,9.998e-05,2]
[348124191,1736340641507,-500.0,9.998e-05,2]
[348124193,1736340641517,-502.33583498,9.998e-05,2]
[348124195,1736340641526,-500.0,9.998e-05,2]
[348124197,1736340641535,-500.0,9.998e-05,2]
[348124199,1736340641545,-1450.77,9.998e-05,2]
[348124201,1736340641554,-500.0,9.998e-05,2]
[348124203,1736340641564,-500.0,9.998e-05,2]
[348124205,1736340641573,-500.0,9.998e-05,2]
[348124207,1736340641583,-500.0,9.998e-05,2]
[348124209,1736340641592,-500.0,9.998e-05,2]
[348124211,1736340641608,-500.0,9.998e-05,2]
[348124213,1736340641617,-500.0,9.998e-05,2]
[348124215,1736340641626,-500.0,9.998e-05,2]
[348124217,1736340641636,-501.41686359,9.998e-05,2]
[348124219,1736340641646,-500.0,9.998e-05,2]
[348124221,1736340641655,-500.0,9.998e-05,2]
[348124223,1736340641664,-500.0,9.998e-05,2]
[348124225,1736340641674,-609.96463229,9.998e-05,2]
[348124227,1736340641683,-500.0,9.998e-05,2]
[348124229,1736340641692,-500.0,9.998e-05,2]
[348124231,1736340641701,-2534.76,9.998e-05,2]
[348124233,1736340641710,-500.0,9.998e-05,2]
[348124235,1736340641719,-500.0,9.998e-05,2]
[348124237,1736340641728,-500.0,9.998e-05,2]
[348124239,1736340641738,-500.0,9.998e-05,2]
[348124241,1736340641748,-500.0,9.998e-05,2]
[348124243,1736340641757,-2934.56,9.998e-05,2]
[348124245,1736340641768,-500.0,9.998e-05,2]
[348124247,1736340641777,-500.0,9.998e-05,2]
[348124249,1736340641787,-500.0,9.998e-05,2]
[348124252,1736340641797,-500.0,9.998e-05,2]
[348124253,1736340641808,-500.0,9.998e-05,2]
[348124255,1736340641818,-501.87293819,9.998e-05,2]
[348124257,1736340641827,-500.0,9.998e-05,2]
[348124259,1736340641837,-500.0,9.998e-05,2]
[348124261,1736340641846,-768.81,9.998e-05,2]
[348124263,1736340641857,-500.0,9.998e-05,2]
[348124265,1736340641867,-500.0,9.998e-05,2]
[348124267,1736340641876,-500.0,9.998e-05,2]
[348124269,1736340641886,-500.0,9.998e-05,2]
[348124271,1736340641895,-500.0,9.998e-05,2]
[348124273,1736340641904,-500.0,9.998e-05,2]
[348124275,1736340641913,-500.0,9.998e-05,2]
[348124277,1736340641924,-500.0,9.998e-05,2]
[348124279,1736340641934,-500.0,9.998e-05,2]
[348124281,1736340641943,-500.0,9.998e-05,2]
[348124282,1736340641953,-500.0,9.998e-05,2]
[348124283,1736340641963,-572.42031,9.998e-05,2]
[348124284,1736340641972,-500.0,9.998e-05,2]
[348124285,1736340641982,-500.0,9.998e-05,2]
[348124286,1736340641991,-500.0,9.998e-05,2]
[348124287,1736340642000,-502.779308,9.998e-05,2]
[348124288,1736340642009,-500.0,9.998e-05,2]
[348124289,1736340642019,-500.0,9.998e-05,2]
[348124290,1736340642028,-500.0,9.998e-05,2]
[348124291,1736340642038,-500.0,9.998e-05,2]
[348124292,1736340642047,-500.0,9.998e-05,2]
[348124293,1736340642056,-500.0,9.998e-05,2]
[348124294,1736340642066,-500.0,9.998e-05,2]
[348124295,1736340642075,-500.0,9.998e-05,2]
[348124296,1736340642085,-500.0,9.998e-05,2]
[348124297,1736340642094,-500.0,9.998e-05,2]
[348124298,1736340642105,-500.0,9.998e-05,2]
[348124299,1736340642114,-500.0,9.998e-05,2]
[348124300,1736340642124,-1232.78,9.998e-05,2]
[348124301,1736340642133,-500.0,9.998e-05,2]
[348124302,1736340642143,-501.32968642,9.998e-05,2]
[348124303,1736340642153,-493.20840416,9.998e-05,2]
[348124304,1736340642163,-500.0,9.998e-05,2]
[348124305,1736340642172,-500.0,9.998e-05,2]
[348124306,1736340642181,-500.0,9.998e-05,2]
[348124307,1736340642191,-588.13052689,9.998e-05,2]
[348124308,1736340642201,-500.0,9.998e-05,2]
[348124309,1736340642211,-500.0,9.998e-05,2]
[348124310,1736340642220,-500.0,9.998e-05,2]
[348124311,1736340642230,-500.0,9.998e-05,2]
[348124312,1736340642239,-1021.69,9.998e-05,2]
[348124313,1736340642249,-500.0,9.998e-05,2]
[348124314,1736340642259,-500.0,9.998e-05,2]
[348124315,1736340642270,-502.07028179,9.998e-05,2]
[348124316,1736340642279,-500.0,9.998e-05,2]
[348124317,1736340642288,-500.0,9.998e-05,2]
[348124318,1736340642297,-500.37600263,9.998e-05,2]
[348124319,1736340642307,-500.0,9.998e-05,2]
[348124320,1736340642316,-500.0,9.998e-05,2]
[348124321,1736340642325,-500.0,9.998e-05,2]
[348124322,1736340642335,-500.0,9.998e-05,2]
[348124323,1736340642344,-501.37751107,9.998e-05,2]
[348124324,1736340642356,-496.74119348,9.998e-05,2]
[348124325,1736340642365,-500.0,9.998e-05,2]
[348124326,1736340642375,-500.99204811,9.998e-05,2]
[348124327,1736340642384,-500.0,9.998e-05,2]
[348124328,1736340642395,-500.0,9.998e-05,2]
[348124329,1736340642404,-501.76566626,9.998e-05,2]
[348124330,1736340642413,-500.0,9.998e-05,2]
[348124331,1736340642423,-500.0,9.998e-05,2]
[348124332,1736340642433,-500.0,9.998e-05,2]
[348124333,1736340642443,-500.0,9.998e-05,2]
[348124334,1736340642452,-500.0,9.998e-05,2]
[348124335,1736340642462,-500.0,9.998e-05,2]
[348124336,1736340642471,-500.0,9.998e-05,2]
[348124337,1736340642481,-500.0,9.998e-05,2]
[348124338,1736340642490,-500.0,9.998e-05,2]
[348124339,1736340642499,-500.0,9.998e-05,2]
[348124340,1736340642509,-501.42901297,9.998e-05,2]
[348124341,1736340642518,-500.0,9.998e-05,2]
[348124342,1736340642528,-500.81245417,9.998e-05,2]
[348124343,1736340642537,-500.0,9.998e-05,2]
[348124344,1736340642547,-500.0,9.998e-05,2]
[348124345,1736340642556,-500.0,9.998e-05,2]
[348124346,1736340642566,-500.0,9.998e-05,2]
[348124347,1736340642576,-500.0,9.998e-05,2]
[348124348,1736340642586,-500.0,9.998e-05,2]
[348124349,1736340642596,-501.49305795,9.998e-05,2]
[348124351,1736340642614,-500.0,9.998e-05,2]
[348124352,1736340642624,-500.0,9.998e-05,2]
[348124353,1736340642634,-501.38911777,9.998e-05,2]
[348124354,1736340642644,-500.0,9.998e-05,2]
[348124355,1736340642654,-500.84901607,9.998e-05,2]
[348124357,1736340642664,-502.20081016,9.998e-05,2]
[348124359,1736340642674,-500.0,9.998e-05,2]
[348124360,1736340642683,-500.89569115,9.998e-05,2]
[348124361,1736340642694,-500.0,9.998e-05,2]
[348124362,1736340642704,-502.23490444,9.998e-05,2]
[348124363,1736340642713,-501.37987764,9.998e-05,2]
[348124364,1736340642722,-500.0,9.998e-05,2]
[348124365,1736340642731,-500.89917465,9.998e-05,2]
[348124366,1736340642741,-502.9020632,9.998e-05,2]
[348124367,1736340642750,-500.0,9.998e-05,2]
[348124368,1736340642760,-501.16452613,9.998e-05,2]
[348124370,1736340642769,-500.0,9.998e-05,2]
[348124372,1736340642778,-500.0,9.998e-05,2]
[348124374,1736340642787,-502.17186647,9.998e-05,2]
[348124376,1736340642797,-607.65332772,9.998e-05,2]
[348124378,1736340642806,-500.0,9.998e-05,2]
[348124380,1736340642816,-500.0,9.998e-05,2]
[348124382,1736340642825,-500.0,9.998e-05,2]
[348124386,1736340642835,-501.42788874,9.998e-05,2]
[348124389,1736340642845,-502.70925514,9.998e-05,2]
[348124391,1736340642855,-500.0,9.998e-05,2]
[348124394,1736340642864,-500.0,9.998e-05,2]
[348124397,1736340642874,-500.0,9.998e-05,2]
[348124401,1736340642884,-500.0,9.998e-05,2]
[348124403,1736340642893,-599.18615038,9.998e-05,2]
[348124406,1736340642903,-500.0,9.999e-05,2]
[348124408,1736340642913,-500.0,9.999e-05,2]
[348124410,1736340642922,-500.0,9.999e-05,2]
[348124412,1736340642932,-500.0,9.999e-05,2]
[348124414,1736340642942,-500.0,9.999e-05,2]
[348124416,1736340642951,-500.0,9.999e-05,2]
[348124418,1736340642960,-500.0,9.999e-05,2]
[348124419,1736340642969,-500.0,9.999e-05,2]
[348124420,1736340642979,-500.0,9.999e-05,2]
[348124421,1736340642989,-500.0,9.999e-05,2]
[348124422,1736340642998,-500.0,9.999e-05,2]
[348124423,1736340643007,-500.0,9.999e-05,2]
[348124424,1736340643016,-500.0,9.999e-05,2]
[348124425,1736340643025,-500.0,9.999e-05,2]
[348124426,1736340643035,-500.0,9.999e-05,2]
[348124427,1736340643045,-500.0,9.999e-05,2]
[348124428,1736340643054,-500.0,9.999e-05,2]
[348124429,1736340643063,-502.30205745,9.999e-05,2]
[348124430,1736340643072,-500.0,9.999e-05,2]
[348124431,1736340643082,-500.0,9.999e-05,2]
[348124432,1736340643091,-500.0,9.999e-05,2]
[348124433,1736340643101,-173.73123733,9.999e-05,2]
[348124434,1736340643112,-500.0,9.999e-05,2]
[348124435,1736340643121,-500.0,9.999e-05,2]
[348124436,1736340643131,-500.0,9.999e-05,2]
[348124437,1736340643141,-500.0,9.999e-05,2]
[348124438,1736340643150,-500.0,9.999e-05,2]
[348124439,1736340643160,-500.0,9.999e-05,2]
[348124440,1736340643169,-500.0,9.999e-05,2]
[348124441,1736340643179,-500.0,9.999e-05,2]
[348124442,1736340643188,-841.82,9.999e-05,2]
[348124444,1736340643197,-500.0,9.999e-05,2]
[348124446,1736340643206,-500.0,9.999e-05,2]
[348124448,1736340643215,-500.0,9.999e-05,2]